bitfinex/quotes_ETHUSD_20241225
["timestamp","ask_amount","ask_price","bid_price","bid_amount"]
[1735114548061,1.146045,3493.0,3492.3,0.8267]
[1735114548605,2.86295,3492.9,3492.3,0.8267]
[1735114548804,4.008925,3493.0,3492.3,0.8267]
[1735114551088,1.146045,3493.0,3492.4,0.55]
[1735114551295,1.146045,3493.0,3492.6,0.8267]
[1735114555637,1.146045,3493.0,3492.6,0.85532919]
[1735114555782,1.146045,3493.0,3492.6,0.8267]
[1735114556133,1.19707279,3493.5,3492.9,0.7632]
[1735114556298,1.19707279,3493.5,3493.0,0.55]
[1735114556499,1.145798,3493.4,3493.0,0.55]
[1735114557033,1.145798,3493.4,3493.0,0.7632]
[1735114557235,1.19707279,3493.6,3493.1,0.55]
[1735114557534,2.34278979,3493.6,3493.3,0.55]
[1735114557892,2.34278979,3493.6,3493.4,0.832]
[1735114558114,1.145717,3493.6,3493.4,0.832]
[1735114558279,2.86205,3494.0,3493.4,0.832]
[1735114558731,1.145672,3493.9,3493.5,0.55]
[1735114559094,1.19707279,3494.1,3493.5,0.55]
[1735114559298,1.19707279,3494.1,3493.5,0.57861971]
[1735114559677,2.86189,3494.2,3493.5,0.57861971]
[1735114559895,1.145577,3494.1,3493.5,0.57861971]
[1735114560349,1.19707279,3494.3,3493.8,9.652]
[1735114560644,1.19707279,3494.3,3493.9,9.37]
[1735114560845,1.19707279,3494.8,3494.2,0.832]
[1735114561141,1.19707279,3494.8,3494.3,0.55]
[1735114561345,1.145376,3494.7,3494.3,0.55]
[1735114562040,4.006846,3494.7,3494.2,0.832]
[1735114562200,2.86156,3494.6,3494.2,0.832]
[1735114564985,1.145376,3494.7,3494.2,0.832]
[1735114565134,1.145376,3494.7,3493.6,8.82]
[1735114565135,2.86205,3494.0,3493.6,8.82]
[1735114565330,2.8619,3494.2,3493.4,0.832]
[1735114565573,2.86158,3494.6,3493.6,3.0]
[1735114565726,1.145376,3494.7,3493.7,3.02861582]
[1735114565932,1.145376,3494.7,3493.8,0.832]
[1735114566232,1.145376,3494.7,3494.0,3.0]
[1735114566465,1.145376,3494.7,3494.2,0.832]
[1735114566631,1.145376,3494.7,3494.3,0.55]
[1735114571634,4.006916,3494.7,3494.2,0.832]
[1735114572143,2.86162,3494.6,3494.2,0.832]
[1735114572567,1.145376,3494.7,3494.2,0.832]
[1735114573081,1.145376,3494.7,3494.3,0.55]
[1735114574484,1.145376,3494.7,3494.1,0.55]
[1735114574689,1.145376,3494.7,3493.9,9.577]
[1735114574690,2.86158,3494.6,3493.9,9.577]
[1735114574851,0.7784,3494.6,3493.9,9.577]
[1735114575393,1.145376,3494.7,3493.9,9.577]
[1735114575541,1.145376,3494.7,3494.0,0.57861716]
[1735114575890,1.145376,3494.7,3494.4,0.55]
[1735114577296,1.923776,3494.7,3494.1,8.82]
[1735114577501,4.006856,3494.7,3494.1,8.82]
[1735114577705,1.145376,3494.7,3494.1,8.82]
[1735114578043,1.145376,3494.7,3494.2,3.0]
[1735114578543,1.145376,3494.7,3494.3,0.757]
[1735114579107,1.145376,3494.7,3494.4,0.55]
[1735114579281,1.35095002,3495.3,3494.4,0.55]
[1735114579589,1.145274,3495.1,3494.4,3.55]
[1735114581494,1.145274,3495.1,3494.8,0.757]
[1735114581659,2.86067,3495.7,3494.9,0.55]
[1735114581844,0.7784,3495.6,3494.9,0.55]
[1735114582190,1.145118,3495.3,3494.5,1.307]
[1735114582412,1.145118,3495.3,3494.7,11.68147]
[1735114582709,1.145118,3495.3,3494.9,0.55]
[1735114585698,1.145118,3495.3,3495.1,0.55]
[1735114586002,1.145118,3495.3,3495.2,1.307]
[1735114586991,1.145118,3495.3,3495.2,0.757]
[1735114587567,1.145118,3495.3,3495.2,1.307]
[1735114588547,0.17385,3495.8,3495.3,0.55]
[1735114588751,1.145004,3495.7,3495.3,0.55]
[1735114592205,0.17385,3495.8,3495.3,0.55]
[1735114592505,0.17385,3495.8,3495.6,0.788]
[1735114592802,0.17385,3495.8,3495.7,0.55]
[1735114601797,0.98265,3495.8,3495.5,0.55]
[1735114601970,0.17385,3495.8,3495.5,0.55]
[1735114603173,0.17385,3495.8,3495.6,0.7686]
[1735114603375,0.17385,3495.8,3495.7,0.55]
[1735114604501,0.17385,3495.8,3495.5,0.55]
[1735114604688,0.17385,3495.8,3495.7,0.55]
[1735114605071,0.17385,3495.8,3495.5,0.55]
[1735114606185,0.17385,3495.8,3495.7,0.55]
[1735114607582,0.17385,3495.8,3495.5,0.55]
[1735114607820,0.17385,3495.8,3495.4,0.55]
[1735114608999,0.17385,3495.8,3495.4,3.55]
[1735114609231,0.17385,3495.8,3495.4,12.37]
[1735114611738,0.17385,3495.8,3495.5,0.7686]
[1735114617161,0.17385,3495.8,3495.6,0.57860361]
[1735114617368,0.17385,3495.8,3495.7,3.0]
[1735114617532,0.17385,3495.8,3495.7,3.55]
[1735114617709,0.17385,3495.8,3495.7,15.23065]
[1735114617916,0.17385,3495.8,3495.7,15.99925]
[1735114618227,1.19493046,3496.9,3496.2,0.55]
[1735114618550,1.26097376,3496.9,3496.2,0.57859676]
[1735114619152,1.19493046,3496.9,3496.2,3.43883676]
[1735114619358,1.19493046,3496.9,3496.4,9.37]
[1735114619666,0.9955916,3497.2,3496.4,9.37]
[1735114621473,0.9955916,3497.2,3496.6,0.55]
[1735114621673,0.9955916,3497.2,3496.6,1.3265]
[1735114622503,0.7548,3497.1,3496.5,3.0]
[1735114622661,2.85992,3496.6,3496.5,3.0]
[1735114622866,2.86,3496.5,3496.4,8.82]
[1735114623073,3.6148,3496.5,3496.4,8.82]
[1735114623252,3.6808433,3496.5,3496.4,8.82]
[1735114623613,4.04892763,3496.5,3496.4,8.82]
[1735114624285,0.7548,3496.4,3495.5,1.19660312]
[1735114624482,0.7548,3495.8,3495.5,1.19660312]
[1735114624666,3.61553,3495.6,3495.5,1.19660312]
[1735114625369,2.86131,3494.9,3494.7,1.19660312]
[1735114625700,3.61611,3494.9,3494.7,1.19660312]
[1735114626302,3.6821533,3494.9,3494.7,1.19660312]
[1735114626605,0.8208433,3494.9,3494.7,1.19660312]
[1735114626758,0.8208433,3494.9,3494.3,8.82]
[1735114627480,0.8208433,3494.9,3494.4,3.0]
[1735114628050,3.6821533,3494.9,3494.4,3.0]
[1735114628895,0.8208433,3494.9,3494.4,3.0]
[1735114630173,2.86144,3494.8,3494.4,3.0]
[1735114630373,2.9274833,3494.8,3494.0,11.82]
[1735114630586,0.0660433,3494.8,3494.0,3.0]
[1735114630905,0.0660433,3494.8,3493.9,43.82]
[1735114631254,2.86184,3494.3,3493.9,8.82]
[1735114631568,2.86162,3494.6,3493.9,8.82]
[1735114631972,0.0660433,3494.8,3494.0,3.0]
[1735114632189,0.0660433,3494.8,3494.1,0.55]
[1735114632602,0.0660433,3494.8,3494.4,3.55]
[1735114633208,0.0660433,3494.8,3494.7,3.55]
[1735114633556,0.0660433,3494.8,3494.7,38.55]
[1735114633757,0.0660433,3494.8,3494.7,3.55]
[1735114634674,0.0660433,3494.8,3494.7,3.5786095]
[1735114634872,0.0660433,3494.8,3494.7,4.3710095]
[1735114636449,0.0660433,3494.8,3494.7,16.02387]
[1735114637730,0.0660433,3494.8,3494.7,17.0014679]
[1735114639071,0.0660433,3494.8,3494.7,16.02387]
[1735114640042,0.0660433,3494.8,3494.7,15.23147]
[1735114640896,3.3e-06,3494.8,3494.7,16.02387]
[1735114641037,3.3e-06,3494.8,3494.7,16.27387]
[1735114641243,1.19493046,3496.7,3495.9,9.6123967]
[1735114641470,1.19493046,3496.7,3496.0,3.55]
[1735114642741,0.8164,3496.8,3496.0,3.55]
[1735114643437,2.85993,3496.6,3496.0,3.0]
[1735114644601,3.67617,3496.8,3496.0,3.0]
[1735114645259,3.67617,3496.8,3496.0,11.8199967]
[1735114646661,2.86001,3496.5,3496.0,11.8199967]
[1735114647701,2.86019,3496.3,3496.0,8.8199967]
[1735114648006,0.7542,3496.4,3495.2,10.01659982]
[1735114648148,2.86054,3495.9,3495.2,10.01659982]
[1735114648673,0.7542,3496.4,3495.3,0.02860628]
[1735114648882,2.86034,3496.1,3495.3,0.02860628]
[1735114649462,2.86049,3496.0,3495.3,3.0]
[1735114650325,2.86035,3496.1,3495.3,3.0]
[1735114651058,2.86045,3496.0,3495.3,3.0]
[1735114651388,0.7542,3495.8,3495.1,0.7847]
[1735114651691,0.7542,3496.1,3495.2,0.55]
[1735114651894,0.7542,3496.1,3495.1,0.7847]
[1735114652390,0.7542,3496.1,3495.3,3.0]
[1735114653062,0.7542,3496.1,3495.2,35.0]
[1735114653396,2.86058,3495.8,3495.2,35.0]
[1735114654265,2.86058,3495.8,3495.1,3.55]
[1735114655603,2.86058,3495.8,3494.6,3.35130915]
[1735114655604,0.787,3495.7,3494.6,3.35130915]
[1735114655749,3.64831,3494.9,3494.3,10.61490138]
[1735114655951,0.787,3494.9,3494.3,10.61490138]
[1735114656223,2.86155,3494.6,3494.3,10.61490138]
[1735114656501,2.86155,3494.6,3494.3,1.79490468]
[1735114656704,2.86155,3494.6,3494.1,1.19660312]
[1735114656705,0.364855,3494.6,3494.1,1.19660312]
[1735114656850,2.8618,3494.3,3494.1,1.19660312]
[1735114657468,3.64865,3494.5,3494.1,1.19660312]
[1735114657669,2.86176,3494.4,3494.1,1.19660312]
[1735114658103,2.86176,3494.4,3493.8,2.39320624]
[1735114658104,2.86176,3494.4,3493.8,8.8199967]
[1735114659702,2.8618,3494.3,3493.8,8.8199967]
[1735114662803,3.64871,3494.5,3493.8,8.8199967]
[1735114663127,2.86172,3494.4,3493.8,8.8199967]
[1735114663284,2.86172,3494.4,3493.7,3.55]
[1735114663742,2.86184,3494.3,3493.7,3.55]
[1735114666430,0.787,3494.5,3493.5,3.0]
[1735114666659,2.8621,3494.0,3493.5,11.8199967]
[1735114672346,2.8621,3494.0,3493.5,3.0]
[1735114674541,1.14553,3494.1,3493.5,3.0]
[1735114674744,2.86154,3494.7,3493.5,3.0]
[1735114674745,2.86172,3494.4,3493.8,0.55]
[1735114674995,1.145443,3494.3,3493.8,0.55]
[1735114675350,2.86172,3494.4,3493.8,9.3699967]
[1735114675565,4.007157,3494.4,3493.8,9.3699967]
[1735114677417,2.8618,3494.3,3493.8,9.3699967]
[1735114677565,2.86203,3494.1,3493.8,8.8199967]
[1735114678507,2.86203,3494.1,3493.5,3.0]
[1735114678508,2.86203,3494.1,3493.5,11.8199967]
[1735114678868,2.86214,3493.9,3493.5,11.8199967]
[1735114680364,1.145437,3494.4,3493.6,1.3231]
[1735114680604,0.7796,3494.9,3493.8,0.55]
[1735114680806,2.86129,3495.0,3494.1,3.0]
[1735114681122,2.86129,3495.0,3494.2,0.02861427]
[1735114681478,1.145336,3494.8,3494.2,0.02861427]
[1735114681677,3.64068,3495.2,3494.3,9.5930967]
[1735114681871,0.7796,3495.2,3494.4,0.57861143]
[1735114682224,0.7796,3495.2,3494.4,0.55]
[1735114682225,1.1452,3495.2,3494.4,0.55]
[1735114682975,1.1452,3495.2,3494.4,0.57861072]
[1735114683181,1.1452,3495.2,3494.5,0.7731]
[1735114683407,1.1452,3495.2,3494.6,0.02861069]
[1735114683614,1.1452,3495.2,3494.6,3.0]
[1735114683923,0.7796,3495.8,3494.8,0.7731]
[1735114684123,1.145056,3495.6,3494.9,3.55]
[1735114684375,1.145056,3495.6,3494.9,12.3699967]
[1735114684499,2.86051,3495.9,3495.0,0.7731]
[1735114684697,2.86051,3495.9,3495.1,8.8199967]
[1735114685084,4.005639,3495.8,3495.1,8.8199967]
[1735114685656,4.005639,3495.8,3495.2,0.7731]
[1735114686328,1.145019,3495.8,3495.3,0.02860642]
[1735114687080,1.145019,3495.8,3495.2,0.7731]
[1735114687831,2.86051,3495.9,3495.2,0.7731]
[1735114687985,4.005495,3495.9,3495.2,0.7731]
[1735114689196,1.144985,3495.9,3495.2,0.7731]
[1735114689617,2.86033,3496.1,3495.4,0.7731]
[1735114690016,4.005251,3496.1,3495.4,0.7731]
[1735114690393,4.005251,3496.1,3495.4,9.5930967]
[1735114692137,2.86042,3496.0,3495.4,9.5930967]
[1735114692997,2.86082,3495.5,3495.4,8.8199967]
[1735114693196,1.395839,3495.5,3494.5,2.02110312]
[1735114693395,2.86132,3494.9,3494.5,2.02110312]
[1735114693643,1.395839,3495.5,3494.5,2.02110312]
[1735114693797,2.86141,3494.8,3494.5,1.19660312]
[1735114694305,2.86173,3494.4,3494.2,8.8199967]
[1735114694931,2.86201,3494.1,3493.7,1.19660312]
[1735114695241,2.86221,3493.8,3493.7,1.19660312]
[1735114696238,2.86206,3494.0,3493.3,8.8199967]
[1735114697181,2.86215,3493.9,3493.3,8.8199967]
[1735114699380,2.86215,3493.9,3493.2,3.0]
[1735114701782,3.68509,3494.8,3493.6,0.8245]
[1735114701944,0.8237,3494.8,3493.6,0.8245]
[1735114702685,2.86189,3494.2,3493.6,0.8245]
[1735114703439,2.86147,3494.7,3493.6,0.8245]
[1735114703440,2.86173,3494.4,3493.6,0.8245]
[1735114704551,2.86173,3494.4,3493.7,0.02861872]
[1735114704758,2.85828603,3494.4,3493.7,0.02861872]
[1735114704982,2.85828603,3494.4,3493.6,0.8245]
[1735114705481,2.85828603,3494.4,3493.7,3.0]
[1735114706037,2.86154,3494.7,3493.7,3.0]
[1735114706242,0.8237,3494.8,3493.7,3.0]
[1735114706243,3.230074,3494.6,3493.7,3.0]
[1735114706490,2.86196,3494.1,3493.7,3.0]
[1735114707672,2.86196,3494.1,3493.6,9.6444967]
[1735114708444,2.86196,3494.1,3493.6,0.8245]
[1735114710693,1.145555,3494.2,3493.7,0.02862103]
[1735114710917,0.8237,3494.8,3493.6,0.8245]
[1735114711086,1.1455,3494.4,3493.7,0.02861907]
[1735114711632,2.86148,3494.7,3493.8,0.55]
[1735114711785,2.86132,3494.9,3493.9,0.8213]
[1735114711993,1.145402,3494.7,3493.9,9.66991322]
[1735114712191,1.145402,3494.7,3494.0,3.0]
[1735114712394,1.145402,3494.7,3494.1,0.02861653]
[1735114712922,1.145402,3494.7,3494.0,3.0]
[1735114713920,1.145402,3494.7,3494.1,0.57861597]
[1735114714120,1.145402,3494.7,3494.2,0.8213]
[1735114714618,1.145402,3494.7,3494.3,0.02861421]
[1735114714835,1.145402,3494.7,3494.2,3.8213]
[1735114715519,0.57372421,3495.5,3494.3,1.3713]
[1735114715821,1.145157,3495.1,3494.4,3.0]
[1735114716029,1.145157,3495.1,3494.6,0.55]
[1735114716608,1.145157,3495.1,3494.5,0.55]
[1735114717485,1.145157,3495.1,3494.4,3.0]
[1735114717486,1.145157,3495.1,3494.8,3.0]
[1735114717683,3.68887,3495.7,3494.8,3.0]
[1735114718224,1.145083,3495.6,3494.8,3.0]
[1735114718582,1.145083,3495.6,3494.8,11.8199967]
[1735114719301,2.86089,3495.5,3494.8,11.8199967]
[1735114720131,1.145083,3495.6,3494.8,11.8199967]
[1735114721442,1.145083,3495.6,3495.0,3.55]
[1735114722998,2.86092,3495.4,3495.0,3.0]
[1735114723210,2.86082,3495.5,3495.0,3.0]
[1735114723487,4.005823,3495.6,3495.0,3.0]
[1735114723719,1.145083,3495.6,3495.0,3.0]
[1735114724084,1.145083,3495.6,3495.0,5.86122]
[1735114724484,1.145083,3495.6,3495.1,0.55]
[1735114725328,1.145083,3495.6,3495.2,0.8001]
[1735114725529,1.145083,3495.6,3495.3,0.55]
[1735114725823,1.145083,3495.6,3495.5,3.0]
[1735114726029,3.65097,3496.3,3495.4,3.0]
[1735114726383,1.144904,3496.2,3495.4,3.0]
[1735114729428,1.144904,3496.2,3495.4,11.8199967]
[1735114730689,4.005174,3496.2,3495.4,11.8199967]
[1735114731016,2.86063,3495.8,3495.4,11.8199967]
[1735114731324,0.7908,3496.1,3495.4,11.8199967]
[1735114731531,2.86043,3496.0,3495.4,11.8199967]
[1735114732385,2.86043,3496.0,3495.3,3.0]
[1735114733801,0.7908,3496.1,3495.3,3.0]
[1735114734935,3.65115,3496.1,3495.3,3.0]
[1735114737308,1.144904,3496.2,3495.3,3.0]
[1735114737309,1.144904,3496.2,3495.4,0.57860572]
[1735114737513,1.144904,3496.2,3495.6,3.0]
[1735114737712,1.144904,3496.2,3495.6,11.8199967]
[1735114741450,1.144904,3496.2,3495.8,3.0]
[1735114744528,1.144904,3496.2,3495.7,3.0]
[1735114746623,3.68252,3497.0,3495.9,11.6804067]
[1735114746814,3.68252,3497.0,3496.1,0.7539]
[1735114747016,1.144696,3496.5,3496.1,0.7539]
[1735114749016,1.144696,3496.5,3496.0,3.0]
[1735114750555,1.144696,3496.5,3496.0,11.8199967]
[1735114750867,1.144661,3496.8,3496.0,11.8199967]
[1735114752186,1.144661,3496.8,3496.2,3.0]
[1735114752353,1.144661,3496.8,3496.3,0.787]
[1735114753562,1.144661,3496.8,3496.4,3.0]
[1735114753712,0.1747483,3497.2,3496.7,3.0]
[1735114754113,0.7829,3497.1,3496.7,3.0]
[1735114755057,2.8597,3496.9,3496.6,8.8199967]
[1735114755990,3.64241,3497.1,3496.6,8.8199967]
[1735114756194,0.7829,3497.1,3496.6,8.8199967]
[1735114757291,2.85961,3497.0,3496.6,8.8199967]
[1735114758996,0.7829,3497.0,3496.6,8.8199967]
[1735114759493,0.7829,3497.0,3496.3,9.6069967]
[1735114760069,0.7829,3497.0,3496.4,3.0]
[1735114762467,0.7829,3497.1,3496.4,3.0]
[1735114762997,0.7829,3497.1,3496.5,2.85999]
[1735114763197,0.7829,3497.1,3496.6,3.0]
[1735114764178,0.7829,3497.1,3496.4,3.0]
[1735114765503,0.7829,3497.1,3496.6,3.0]
[1735114768507,0.7829,3497.1,3496.6,11.8199967]
[1735114771630,0.7829,3497.1,3496.8,3.0]
[1735114772227,0.1747483,3497.2,3496.8,3.0]
[1735114774534,0.1747483,3497.2,3496.5,3.0]
[1735114774710,0.8237,3497.0,3496.5,3.0]
[1735114777542,0.8237,3497.0,3496.3,8.8199967]
[1735114778003,0.8237,3497.0,3496.4,3.0]
[1735114780626,0.8237,3497.0,3496.4,11.8199967]
[1735114781127,0.8237,3497.0,3496.4,8.8199967]
[1735114781542,0.8237,3497.0,3496.5,3.0]
[1735114783241,0.1747483,3497.2,3496.6,0.02859629]
[1735114783413,0.1747483,3497.2,3496.6,2.85991]
[1735114783610,0.1747483,3497.2,3496.9,3.0]
[1735114788766,0.1747483,3497.2,3496.9,11.8199967]
[1735114790469,3.63408,3497.1,3496.6,1.19660312]
[1735114791167,3.63408,3497.1,3496.7,1.19660312]
[1735114792463,3.63425,3496.8,3496.7,1.19660312]
[1735114792659,3.63425,3496.8,3496.4,2.39320624]
[1735114792660,2.85998,3496.6,3496.4,2.45047031]
[1735114792859,0.7745,3496.5,3496.4,2.45047031]
[1735114793060,3.6345,3496.5,3496.4,2.45047031]
[1735114794035,0.7745,3496.5,3496.4,2.45047031]
[1735114794278,0.7745,3496.5,3495.9,0.7735]
[1735114794456,0.7745,3496.5,3495.9,3.7735]
[1735114795464,0.7745,3496.5,3496.0,2.45047031]
[1735114795831,0.7745,3496.5,3496.0,37.45047031]
[1735114796270,0.7745,3496.5,3496.0,2.45047031]
[1735114796771,0.7745,3496.5,3496.1,35.0]
[1735114797493,0.7745,3496.5,3496.0,0.98018812]
[1735114797876,0.7745,3496.5,3496.0,35.98018812]
[1735114798244,0.7745,3496.5,3496.2,0.98018812]
[1735114798897,0.7745,3496.5,3496.0,35.0]
[1735114799250,0.7745,3496.5,3495.9,11.8199967]
[1735114799644,2.86016,3496.3,3495.9,11.8199967]
[1735114801003,2.85988,3496.7,3495.9,11.8199967]
[1735114801004,3.63146,3496.2,3495.9,11.8199967]
[1735114801684,3.63146,3496.2,3495.6,4.19660312]
[1735114802472,2.86033,3496.1,3495.6,4.19660312]
[1735114802667,2.86064,3495.8,3495.6,1.19660312]
[1735114802870,0.7712,3495.7,3495.6,1.19660312]
[1735114803506,0.7712,3495.7,3495.5,4.19660312]
[1735114804823,0.7712,3495.7,3495.5,3.0]
[1735114805076,2.86073,3495.6,3495.1,4.19660312]
[1735114805235,1.134393,3495.6,3495.1,1.19660312]
[1735114805442,3.63226,3495.2,3495.1,1.19660312]
[1735114805805,2.86114,3495.1,3495.0,0.9811082]
[1735114805993,3.63234,3495.1,3495.0,0.9811082]
[1735114807544,3.63234,3495.1,3494.8,1.19660312]
[1735114807545,2.86128,3495.0,3494.2,3.0]
[1735114810611,2.86128,3495.0,3494.2,11.8199967]
[1735114811384,0.7712,3495.4,3494.5,2.86163]
[1735114811592,0.7712,3495.4,3494.6,3.0]
[1735114812088,0.7712,3495.6,3494.7,0.7865]
[1735114812288,0.7712,3495.6,3494.8,3.0]
[1735114813649,0.7712,3495.6,3495.0,3.0]
[1735114813950,0.7712,3495.6,3495.0,11.8199967]
[1735114815045,0.7712,3495.6,3495.0,8.8199967]
[1735114815243,3.63794,3495.1,3495.0,8.8199967]
[1735114815700,0.7768,3495.1,3495.0,8.8199967]
[1735114816415,0.7768,3495.4,3495.0,8.8199967]
[1735114817453,2.86099,3495.3,3495.0,8.8199967]
[1735114817678,0.7768,3496.0,3495.1,3.0]
[1735114818010,3.63722,3496.0,3494.9,3.811]
[1735114818385,3.63722,3496.0,3495.0,0.02860719]
[1735114818778,3.63722,3496.0,3494.9,3.67226]
[1735114818779,2.86025,3496.2,3495.2,3.0]
[1735114818985,2.86025,3496.2,3495.4,3.0]
[1735114819215,0.7768,3496.3,3495.5,9.6309967]
[1735114819361,0.7768,3496.3,3495.6,3.0]
[1735114819869,3.63699,3496.3,3495.6,3.0]
[1735114822727,3.63699,3496.3,3495.6,11.8199967]
[1735114823100,2.86003,3496.5,3495.6,11.8199967]
[1735114824347,0.7768,3496.6,3495.6,11.8199967]
[1735114824348,2.86013,3496.4,3495.6,11.8199967]
[1735114824528,0.7768,3496.6,3495.6,11.8199967]
[1735114824694,2.86018,3496.3,3495.6,11.8199967]
[1735114831962,0.7706,3496.0,3495.6,11.8199967]
[1735114832895,3.67563,3496.4,3495.6,11.8199967]
[1735114833257,3.67563,3496.4,3495.7,0.7835]
[1735114836062,2.86018,3496.3,3495.7,0.7835]
[1735114842800,2.86003,3496.5,3495.7,0.7835]
[1735114846738,2.86008,3496.4,3495.7,0.7835]
[1735114846935,0.8056,3496.7,3495.8,3.0]
[1735114847097,2.85994,3496.6,3495.8,3.0]
[1735114850790,2.85978,3496.8,3495.9,0.7771]
[1735114851338,1.14483,3496.9,3495.9,0.7771]
[1735114851565,2.85962,3497.0,3496.2,0.7771]
[1735114852798,2.85976,3496.8,3496.2,0.7771]
[1735114855755,1.144653,3497.1,3496.2,0.7771]
[1735114855756,2.85989,3496.7,3496.2,0.7771]
[1735114856054,2.85993,3496.6,3496.2,0.7771]
[1735114860157,0.8113,3496.6,3496.0,3.0]
[1735114860357,2.86034,3496.1,3495.9,1.19660312]
[1735114860663,2.86,3496.5,3495.9,1.19660312]
[1735114860860,0.8113,3496.8,3495.9,1.19660312]
[1735114861160,2.85978,3496.8,3496.0,0.7974]
[1735114861701,4.004233,3497.1,3496.0,0.7974]
[1735114862237,1.144653,3497.1,3496.0,3.0]
[1735114862441,1.144653,3497.1,3496.1,0.7974]
[1735114862966,2.85988,3496.7,3496.1,0.7974]
[1735114863167,0.8113,3496.7,3496.1,0.7974]
[1735114863459,2.86027,3496.2,3495.9,0.7974]
[1735114863861,2.86027,3496.2,3495.9,1.99400312]
[1735114864364,2.86041,3496.0,3495.9,1.19660312]
[1735114864529,3.227581,3496.0,3495.9,1.19660312]
[1735114864863,4.038881,3496.0,3495.9,1.19660312]
[1735114865229,4.038881,3496.0,3495.3,1.19660312]
[1735114865230,2.8609,3495.4,3495.3,1.19660312]
[1735114865674,3.6722,3495.4,3495.3,1.19660312]
[1735114866706,3.6722,3495.4,3494.8,1.19660312]
[1735114866707,2.86102,3495.3,3494.8,1.19660312]
[1735114867393,2.86108,3495.2,3494.8,1.19660312]
[1735114867895,2.86108,3495.2,3494.8,2.44193411]
[1735114868203,2.86116,3495.1,3494.8,2.44193411]
[1735114868690,2.86107,3495.2,3494.8,2.44193411]
[1735114869487,2.86107,3495.2,3494.4,5.44193411]
[1735114869659,2.86107,3495.2,3494.4,2.44193411]
[1735114869984,2.86107,3495.2,3494.4,5.44193411]
[1735114870301,2.86124,3495.0,3494.4,5.44193411]
[1735114870477,2.86139,3494.8,3494.5,35.0]
[1735114870648,2.86139,3494.8,3494.4,11.26193081]
[1735114872286,2.86139,3494.8,3494.4,8.8199967]
[1735114873682,2.86139,3494.8,3494.3,3.0]
[1735114874699,2.86139,3494.8,3494.4,0.7858]
[1735114874853,2.86108,3495.2,3494.4,0.7858]
[1735114875196,2.86093,3495.4,3494.6,0.7858]
[1735114875597,2.86093,3495.4,3494.7,3.0]
[1735114876407,0.8287,3495.7,3494.7,3.0]
[1735114876550,2.86107,3495.2,3494.7,3.0]
[1735114876770,0.8287,3495.1,3494.6,8.8199967]
[1735114877485,2.86147,3494.7,3494.6,8.8199967]
[1735114879116,2.86129,3495.0,3494.6,8.8199967]
[1735114879620,0.8287,3495.1,3494.6,8.8199967]
[1735114879914,2.86134,3494.9,3494.3,0.7858]
[1735114882789,2.8614,3494.8,3494.3,0.7858]
[1735114885187,2.7614,3494.8,3494.3,0.7858]
[1735114886926,2.86166,3494.5,3494.1,3.0]
[1735114888329,0.7889,3494.8,3494.1,3.0]
[1735114888827,2.86134,3494.9,3494.2,0.8154]
[1735114890529,2.86164,3494.5,3494.2,0.8154]
[1735114891924,0.7889,3495.0,3494.1,8.8199967]
[1735114892126,0.7889,3494.5,3493.8,8.8199967]
[1735114893712,2.86185,3494.3,3493.8,8.8199967]
[1735114894111,2.862,3494.1,3493.7,0.8154]
[1735114894317,2.86207,3494.0,3493.2,9.6353967]
[1735114894626,2.86214,3493.9,3493.2,9.6353967]
[1735114895607,2.86214,3493.9,3493.3,3.0]
[1735114897867,2.86214,3493.9,3493.2,0.8154]
[1735114899852,2.86245,3493.6,3492.9,0.8154]
[1735114901869,2.86245,3493.6,3493.0,35.0]
[1735114902058,2.86245,3493.6,3493.1,3.0]
[1735114903597,2.86245,3493.6,3492.9,3.8154]
[1735114904107,2.86245,3493.6,3493.1,3.0]
[1735114904974,2.86245,3493.6,3493.2,35.0]
[1735114905784,2.86245,3493.6,3492.9,3.8154]
[1735114906208,2.86245,3493.6,3493.0,35.0]
[1735114906512,2.86245,3493.6,3493.1,3.0]
[1735114907501,2.86245,3493.6,3492.9,0.8154]
[1735114907998,2.86245,3493.6,3493.1,3.0]
[1735114908679,0.7889,3493.8,3493.1,3.0]
[1735114909012,2.86205,3494.0,3493.2,0.833]
[1735114909665,2.86216,3493.9,3493.2,0.833]
[1735114910725,0.8095,3494.1,3493.2,0.833]
[1735114910726,3.67149,3494.1,3493.2,0.833]
[1735114910933,2.86205,3494.0,3493.2,0.833]
[1735114911228,0.8095,3494.1,3493.2,0.833]
[1735114911430,2.86213,3493.9,3493.2,0.833]
[1735114913531,1.145636,3493.8,3493.2,0.833]
[1735114921841,1.145636,3493.8,3493.3,3.0]
[1735114922535,3.62943,3494.4,3493.4,0.7892]
[1735114922720,1.145556,3493.9,3493.4,0.7892]
[1735114924633,1.913256,3493.9,3493.3,3.0]
[1735114924837,2.86221,3493.8,3493.2,0.7892]
[1735114925402,0.7677,3493.4,3493.1,1.19660312]
[1735114926526,2.86266,3493.3,3493.1,1.19660312]
[1735114927042,0.7677,3493.4,3493.1,1.19660312]
[1735114927245,0.7677,3493.4,3492.7,1.19660312]
[1735114928557,0.7677,3493.4,3492.6,5.44094837]
[1735114928854,3.63028,3493.4,3492.6,5.44094837]
[1735114929647,0.7677,3493.7,3492.6,5.44094837]
[1735114929851,0.7677,3493.2,3492.7,2.44094837]
[1735114931262,2.86286,3493.1,3492.7,2.44094837]
[1735114931422,0.7677,3492.9,3492.7,2.44094837]
[1735114932006,0.7677,3492.9,3492.5,1.19660312]